lending/lending_fUSD_20260312
["ID","MTS","AMOUNT","RATE_DAILY","PERIOD"]
[408232068,1773276633226,-500.0,0.00019671,2]
[408232069,1773276633236,-500.0,0.00019671,2]
[408232070,1773276633246,-150.0,0.00019671,2]
[408232071,1773276633256,-150.0,0.00019671,2]
[408232072,1773276633266,-500.0,0.00019671,2]
[408232073,1773276633278,-500.0,0.00019671,2]
[408232074,1773276633289,-648.99053488,0.00019671,2]
[408232075,1773276633299,-500.0,0.00019671,2]
[408232076,1773276633310,-500.0,0.00019671,2]
[408232077,1773276633320,-500.0,0.00019671,2]
[408232078,1773276633331,-500.0,0.00019671,2]
[408232079,1773276633341,-500.0,0.00019671,2]
[408232080,1773276633354,-500.0,0.00019671,2]
[408232081,1773276633366,-150.0,0.00019671,2]
[408232082,1773276633377,-500.0,0.00019671,2]
[408232083,1773276633387,-551.04601421,0.00019671,2]
[408232084,1773276633400,-150.0,0.00019671,2]
[408232085,1773276633410,-500.0,0.00019671,2]
[408232086,1773276633424,-600.74757442,0.00019671,2]
[408232087,1773276633434,-500.0,0.00019671,2]
[408232088,1773276633445,-2000.0,0.000197,2]
[408232089,1773276633456,-4504.00247935,0.000197,2]
[408232090,1773276633468,-2102.65647035,0.000197,2]
[408232091,1773276633478,-211.0,0.00019714,2]
[408232092,1773276633488,-4504.00247927,0.00019722,2]
[408232093,1773276633499,-150.0,0.00019726,2]
[408232094,1773276633509,-150.0,0.00019726,2]
[408232095,1773276633519,-150.0,0.00019726,2]
[408232096,1773276633530,-500.0,0.00019726,2]
[408232097,1773276633540,-153.26158094,0.00019726,2]
[408232098,1773276633551,-453.86401705,0.00019726,2]
[408232099,1773276633561,-209.8782102,0.00019726,2]
[408232100,1773276633571,-150.0,0.00019726,2]
[408232101,1773276633583,-500.0,0.00019726,2]
[408232102,1773276633594,-500.0,0.00019726,2]
[408232103,1773276633604,-500.0,0.00019726,2]
[408232104,1773276633614,-500.0,0.00019726,2]
[408232105,1773276633624,-500.0,0.00019726,2]
[408232106,1773276633634,-500.0,0.00019726,2]
[408232107,1773276633644,-481.15463287,0.00019726,2]
[408232108,1773276633654,-150.0,0.00019726,2]
[408232109,1773276633665,-500.0,0.00019726,2]
[408232110,1773276633676,-207.78302129,0.00019726,2]
[408232111,1773276633686,-504.90199074,0.00019726,2]
[408232112,1773276633696,-500.0,0.00019726,2]
[408232113,1773276633706,-1000.0,0.00019726,2]
[408232114,1773276633718,-4757.53942035,0.00019738,2]
[408232115,1773276633728,-4504.00247927,0.00019744,2]
[408232116,1773276633739,-4504.00247927,0.00019767,2]
[408232117,1773276633750,-166.66,0.0001977,2]
[408232118,1773276633760,-500.0,0.00019773,2]
[408232119,1773276633771,-500.0,0.00019773,2]
[408232120,1773276633781,-283.69039474,0.00019773,2]
[408232121,1773276633791,-275.17021168,0.0001978,2]
[408232122,1773276633801,-152.23722252,0.0001978,2]
[408232123,1773276633811,-205.57005763,0.0001978,2]
[408232124,1773276633821,-500.0,0.0001978,2]
[408232125,1773276633831,-250.58262965,0.0001978,2]
[408232126,1773276633844,-500.0,0.0001978,2]
[408232127,1773276633854,-500.0,0.0001978,2]
[408232128,1773276633864,-500.0,0.0001978,2]
[408232129,1773276633873,-500.0,0.0001978,2]
[408232130,1773276633884,-500.0,0.0001978,2]
[408232131,1773276633893,-500.0,0.0001978,2]
[408232132,1773276633903,-150.0,0.0001978,2]
[408232133,1773276633913,-500.0,0.0001978,2]
[408232134,1773276633923,-500.0,0.0001978,2]
[408232135,1773276633933,-4504.00247927,0.00019789,2]
[408232136,1773276633943,-394.89,0.00019792,2]
[408232137,1773276633953,-500.0,0.00019798,2]
[408232138,1773276633962,-500.0,0.00019799,2]
[408232139,1773276633972,-500.0,0.00019799,2]
[408232140,1773276633982,-350.63,0.00019799,2]
[408232141,1773276633991,-500.0,0.00019799,2]
[408232142,1773276634001,-500.0,0.00019799,2]
[408232143,1773276634011,-500.0,0.00019799,2]
[408232144,1773276634021,-500.0,0.00019799,2]
[408232145,1773276634031,-500.0,0.00019799,2]
[408232146,1773276634041,-500.0,0.00019799,2]
[408232147,1773276634051,-500.0,0.00019799,2]
[408232148,1773276634061,-500.0,0.00019799,2]
[408232149,1773276634070,-500.0,0.00019799,2]
[408232150,1773276634080,-500.0,0.00019799,2]
[408232151,1773276634091,-500.0,0.00019799,2]
[408232152,1773276634104,-500.0,0.00019799,2]
[408232153,1773276634113,-500.0,0.00019799,2]
[408232154,1773276634123,-500.0,0.00019799,2]
[408232155,1773276634132,-500.0,0.00019799,2]
[408232156,1773276634142,-500.0,0.00019799,2]
[408232157,1773276634152,-500.0,0.00019799,2]
[408232158,1773276634161,-500.0,0.00019799,2]
[408232159,1773276634171,-500.0,0.00019799,2]
[408232160,1773276634181,-500.0,0.00019799,2]
[408232161,1773276634190,-500.0,0.00019799,2]
[408232162,1773276634200,-500.0,0.00019799,2]
[408232163,1773276634210,-500.0,0.00019799,2]
[408232164,1773276634220,-500.0,0.00019799,2]
[408232165,1773276634230,-500.0,0.00019799,2]
[408232166,1773276634243,-500.0,0.00019799,2]
[408232167,1773276634253,-500.0,0.00019799,2]
[408232168,1773276634263,-500.0,0.00019799,2]
[408232169,1773276634272,-500.0,0.00019799,2]
[408232170,1773276634282,-500.0,0.00019799,2]
[408232171,1773276634291,-500.0,0.00019799,2]
[408232172,1773276634301,-500.0,0.00019799,2]
[408232173,1773276634311,-303.5105273,0.00019799,2]
[408232174,1773276634321,-500.0,0.00019799,2]
[408232175,1773276634331,-500.0,0.00019799,2]
[408232176,1773276634341,-500.0,0.00019799,2]
[408232177,1773276634354,-500.0,0.00019799,2]
[408232178,1773276634364,-500.0,0.00019799,2]
[408232179,1773276634373,-500.0,0.00019799,2]
[408232180,1773276634383,-500.0,0.00019799,2]
[408232181,1773276634392,-500.0,0.00019799,2]
[408232182,1773276634402,-500.0,0.00019799,2]
[408232183,1773276634411,-500.0,0.00019799,2]
[408232184,1773276634420,-500.0,0.00019799,2]
[408232185,1773276634430,-500.0,0.00019799,2]
[408232186,1773276634439,-500.0,0.00019799,2]
[408232187,1773276634449,-500.0,0.00019799,2]
[408232188,1773276634458,-500.0,0.00019799,2]
[408232189,1773276634467,-500.0,0.00019799,2]
[408232190,1773276634476,-500.0,0.00019799,2]
[408232191,1773276634485,-500.0,0.00019799,2]
[408232192,1773276634494,-500.0,0.00019799,2]
[408232193,1773276634504,-500.0,0.00019799,2]
[408232194,1773276634512,-500.0,0.00019799,2]
[408232195,1773276634522,-500.0,0.00019799,2]
[408232196,1773276634532,-500.0,0.00019799,2]
[408232197,1773276634541,-500.0,0.00019799,2]
[408232198,1773276634550,-500.0,0.00019799,2]
[408232199,1773276634559,-300.0,0.00019799,2]
[408232200,1773276634568,-500.0,0.00019799,2]
[408232201,1773276634578,-176.68252931,0.00019799,2]
[408232202,1773276634587,-500.0,0.00019799,2]
[408232203,1773276634596,-500.0,0.00019799,2]
[408232204,1773276634830,-500.0,0.00019799,2]
[408232205,1773276634841,-500.0,0.00019799,2]
[408232206,1773276634851,-500.0,0.00019799,2]
[408232207,1773276634862,-292.39493631,0.00019799,2]
[408232208,1773276634871,-500.0,0.00019799,2]
[408232209,1773276634880,-500.0,0.00019799,2]
[408232210,1773276634889,-500.0,0.00019799,2]
[408232211,1773276634900,-10851.8111,0.000198,2]
[408232212,1773276634910,-1000.0,0.000198,2]
[408232213,1773276634919,-157333.00338434,0.000198,2]
[408232214,1773276634962,-1145.25619905,0.000198,2]
[408232215,1773276634973,-27291.84219638,0.000198,2]
[408232216,1773276634985,-25911.23032023,0.000198,2]
[408232217,1773276634995,-151.0,0.000198,2]
[408232218,1773276635005,-151.0,0.000198,2]
[408232219,1773276635014,-151.0,0.000198,2]
[408232220,1773276635023,-371.793662,0.000198,2]
[408232221,1773276635032,-371.793662,0.000198,2]
[408232222,1773276635042,-151.0,0.000198,2]
[408232223,1773276635051,-151.0,0.000198,2]
[408232224,1773276635060,-151.0,0.000198,2]
[408232225,1773276635070,-151.0,0.000198,2]
[408232226,1773276635080,-151.0,0.000198,2]
[408232227,1773276635090,-292.144317,0.000198,2]
[408232228,1773276635100,-504.39099,0.000198,2]
[408232229,1773276635109,-151.0,0.000198,2]
[408232230,1773276635118,-151.0,0.000198,2]
[408232231,1773276635128,-4504.00247927,0.00019811,2]
[408232232,1773276635138,-4757.53942035,0.00019819,2]
[408232233,1773276635158,-4504.00247927,0.00019833,2]
[408232234,1773276635168,-500.0,0.00019835,2]
[408232235,1773276635178,-342.97136106,0.00019835,2]
[408232236,1773276635187,-500.0,0.00019835,2]
[408232237,1773276635196,-500.0,0.00019835,2]
[408232238,1773276635206,-500.0,0.00019835,2]
[408232239,1773276635216,-500.0,0.00019835,2]
[408232240,1773276635226,-500.0,0.00019835,2]
[408232241,1773276635236,-150.0,0.00019835,2]
[408232242,1773276635246,-500.0,0.00019835,2]
[408232243,1773276635256,-500.0,0.00019835,2]
[408232244,1773276635266,-8650.2342,0.00019849,2]
[408232245,1773276635276,-504.391,0.0001985,2]
[408232246,1773276635286,-4504.00247927,0.00019856,2]
[408232247,1773276635295,-58.77956952,0.00019873,2]
[408232248,1773276635308,-267.97502338,0.00019873,2]
[408232249,1773276635318,-65.34497662,0.00019873,2]
[408232250,1773276635330,-434.65502338,0.00019873,2]
[408232251,1773276635340,-500.0,0.00019873,2]
[408232252,1773276635352,-150.0,0.00019873,2]
[408232253,1773276635361,-500.0,0.00019873,2]
[408232254,1773276635371,-500.0,0.00019873,2]
[408232255,1773276635381,-500.0,0.00019873,2]
[408232256,1773276635391,-500.0,0.00019873,2]
[408232257,1773276635400,-596.63427033,0.00019873,2]
[408232258,1773276635410,-500.0,0.00019873,2]
[408232259,1773276635419,-500.0,0.00019873,2]
[408232260,1773276635429,-500.0,0.00019873,2]
[408232261,1773276635439,-500.0,0.00019873,2]
[408232262,1773276635448,-401.4231596,0.00019873,2]
[408232263,1773276635458,-500.0,0.00019873,2]
[408232264,1773276635468,-500.35443902,0.00019873,2]
[408232265,1773276635477,-500.32945609,0.00019873,2]
[408232266,1773276635487,-516.98570779,0.00019873,2]
[408232267,1773276635496,-166.2514215,0.00019873,2]
[408232268,1773276635506,-500.0,0.00019873,2]
[408232269,1773276635515,-500.0,0.00019873,2]
[408232270,1773276635529,-500.0,0.00019873,2]
[408232271,1773276635539,-500.0,0.00019873,2]
[408232272,1773276635548,-500.0,0.00019873,2]
[408232273,1773276635558,-500.0,0.00019873,2]
[408232274,1773276635567,-500.0,0.00019873,2]
[408232275,1773276635577,-500.0,0.00019873,2]
[408232276,1773276635587,-575.89673691,0.00019873,2]
[408232277,1773276635596,-500.0,0.00019873,2]
[408232278,1773276635606,-163.79275589,0.00019873,2]
[408232279,1773276635615,-500.0,0.00019873,2]
[408232280,1773276635625,-500.0,0.00019873,2]
[408232281,1773276635635,-500.0,0.00019873,2]
[408232282,1773276635645,-500.0,0.00019873,2]
[408232283,1773276635655,-500.0,0.00019873,2]
[408232284,1773276635664,-556.15951123,0.00019873,2]
[408232285,1773276635674,-162.49047784,0.00019873,2]
[408232286,1773276635683,-565.21220466,0.00019873,2]
[408232287,1773276635693,-500.0,0.00019873,2]
[408232288,1773276635703,-500.0,0.00019873,2]
[408232289,1773276635712,-500.0,0.00019873,2]
[408232290,1773276635721,-500.0,0.00019873,2]
[408232291,1773276635731,-4504.00247927,0.00019878,2]
[408232292,1773276635740,-500.0,0.0001989,2]
[408232293,1773276635752,-280.13396594,0.0001989,2]
[408232294,1773276635762,-510.77564098,0.0001989,2]
[408232295,1773276635771,-500.0,0.0001989,2]
[408232296,1773276635781,-500.0,0.0001989,2]
[408232297,1773276635791,-500.0,0.0001989,2]
[408232298,1773276635801,-500.0,0.0001989,2]
[408232299,1773276635811,-200.54971952,0.0001989,2]
[408232300,1773276635821,-500.0,0.0001989,2]
[408232301,1773276635831,-500.0,0.0001989,2]
[408232302,1773276635841,-500.0,0.00019899,2]
[408232303,1773276635851,-500.0,0.00019899,2]
[408232304,1773276635861,-500.0,0.00019899,2]
[408232305,1773276635871,-500.0,0.00019899,2]
[408232306,1773276635881,-500.0,0.00019899,2]
[408232307,1773276635890,-500.0,0.00019899,2]
[408232308,1773276635899,-500.0,0.00019899,2]
[408232309,1773276635912,-500.0,0.00019899,2]
[408232310,1773276635921,-500.0,0.00019899,2]
[408232311,1773276635930,-500.0,0.00019899,2]
[408232312,1773276635940,-500.0,0.00019899,2]
[408232313,1773276635950,-151.0,0.000199,2]
[408232314,1773276635959,-5000.0,0.000199,2]
[408232315,1773276635968,-434.18116754,0.000199,2]
[408232316,1773276635978,-163.0,0.000199,2]
[408232317,1773276635988,-4504.00247927,0.000199,2]
[408232318,1773276635997,-504.39099,0.000199,2]
[408232319,1773276636008,-427.54291812,0.000199,2]
[408232320,1773276636018,-4757.53942035,0.000199,2]
[408232321,1773276636028,-544.85773056,0.000199,2]
[408232322,1773276636038,-500.0,0.00019945,2]
[408232323,1773276636047,-500.0,0.00019945,2]
[408232324,1773276636056,-500.0,0.00019945,2]
[408232325,1773276636066,-500.0,0.00019945,2]
[408232326,1773276636075,-450.62449707,0.00019945,2]
[408232327,1773276636084,-500.0,0.00019945,2]
[408232328,1773276636105,-504.39099,0.0001995,2]
[408232329,1773276636121,-2143.0,0.00019973,2]
[408232330,1773276636133,-500.0,0.00019973,2]
[408232331,1773276636144,-500.0,0.00019973,2]
[408232332,1773276636154,-500.0,0.00019973,2]
[408232333,1773276636164,-236.75,0.00019973,2]
[408232334,1773276636173,-303.561158,0.00019973,2]
[408232335,1773276636183,-303.561158,0.00019973,2]
[408232336,1773276636192,-303.561158,0.00019973,2]
[408232337,1773276636201,-303.561158,0.00019973,2]
[408232338,1773276636211,-151.0,0.00019973,2]
[408232339,1773276636219,-151.0,0.00019973,2]
[408232340,1773276636228,-151.0,0.00019973,2]
[408232341,1773276636237,-371.793662,0.00019973,2]
[408232342,1773276636247,-371.793662,0.00019973,2]
[408232343,1773276636256,-151.0,0.00019973,2]
[408232344,1773276636265,-151.0,0.00019973,2]
[408232345,1773276636274,-153.415838,0.00019988,2]
[408232346,1773276636284,-196.51231277,0.0001999,2]
[408232347,1773276636293,-6202.50877842,0.00019993,2]
[408232348,1773276636306,-15801.12343205,0.00019993,2]
[408232352,1773276638372,-167.307148,0.000198,2]
[408232353,1773276638387,-167.307148,0.000198,2]
[408232354,1773276638396,-190.93937086,0.000199,2]
[408232355,1773276638406,-1803.0,0.0001994,2]
[408232356,1773276638415,-167.307148,0.00019973,2]
[408232357,1773276638425,-5270.39937183,0.00019993,2]
[408232358,1773276638434,-151.0,0.00019993,2]
[408232359,1773276638443,-151.0,0.00019993,2]
[408232360,1773276638454,-151.0,0.00019993,2]
[408232361,1773276638463,-151.0,0.00019993,2]
[408232362,1773276638472,-151.0,0.00019993,2]
[408232363,1773276638481,-336.903184,0.00019993,2]
[408232364,1773276638491,-336.903184,0.00019993,2]
[408232365,1773276638500,-336.903184,0.00019993,2]
[408232366,1773276638510,-336.903184,0.00019993,2]
[408232367,1773276638519,-151.0,0.00019993,2]
[408232368,1773276638529,-183.614862,0.00019993,2]
[408232369,1773276638538,-522.993104,0.00019993,2]
[408232370,1773276638547,-205.598047,0.00019993,2]
[408232371,1773276638556,-522.993104,0.00019993,2]
[408232372,1773276638566,-205.598047,0.00019993,2]
[408232373,1773276638576,-522.993104,0.00019993,2]
[408232374,1773276638586,-205.598047,0.00019993,2]
[408232375,1773276638595,-522.993104,0.00019993,2]
[408232376,1773276638605,-205.598047,0.00019993,2]
[408232377,1773276638614,-151.0,0.00019997,2]
[408232378,1773276638623,-500.0,0.00019999,2]
[408232379,1773276638634,-500.0,0.00019999,2]
[408232380,1773276638643,-500.0,0.00019999,2]
[408232381,1773276638652,-500.0,0.00019999,2]
[408232382,1773276638661,-500.0,0.00019999,2]
[408232383,1773276638670,-500.0,0.00019999,2]
[408232384,1773276638680,-500.0,0.00019999,2]
[408232385,1773276638689,-500.0,0.00019999,2]
[408232386,1773276638699,-500.0,0.00019999,2]
[408232387,1773276638709,-500.0,0.00019999,2]
[408232388,1773276638727,-506.85,0.00019999,2]
[408232389,1773276638736,-500.0,0.00019999,2]
[408232390,1773276638747,-500.0,0.00019999,2]
[408232391,1773276638756,-500.0,0.00019999,2]
[408232392,1773276638766,-500.0,0.00019999,2]
[408232393,1773276638776,-500.0,0.00019999,2]
[408232394,1773276638787,-195.92399743,0.00019999,5]
[408232395,1773276638797,-389.03900562,0.00019999,2]
[408232396,1773276638807,-273.05821868,0.00019999,2]
[408232397,1773276638818,-500.0,0.00019999,2]
[408232398,1773276638828,-500.0,0.00019999,2]
[408232399,1773276638838,-406.81850135,0.00019999,2]
[408232400,1773276638848,-500.0,0.0002,2]
[408232402,1773276638859,-401.99957865,0.0002,2]
[408232404,1773276638868,-500.0,0.0002,2]
[408232406,1773276638878,-500.0,0.0002,2]
[408232408,1773276638887,-500.0,0.0002,2]
[408232410,1773276638897,-2071.0,0.0002,2]
[408232412,1773276638906,-1659.0,0.0002,2]
[408232414,1773276638916,-499032.38556042,0.0002,2]
[408232416,1773276638928,-1663.90390536,0.0002,2]
[408232446,1773276640564,-167.307148,0.000198,2]
[408232447,1773276640574,-167.307148,0.00019973,2]
[408232448,1773276640583,-167.307148,0.00019973,2]
[408232449,1773276640593,-521.650712,0.0002,2]
[408232450,1773276640722,-473.93335833,0.0002,2]
[408232451,1773276640733,-4726.3795467,0.0002,2]
[408232452,1773276640775,-289534.07682558,0.0002,2]
[408232465,1773276645306,-151.0,0.00014634,2]
[408232466,1773276645315,-1009.32529984,0.00019699,2]
[408232467,1773276645336,-141.51211234,0.00019699,2]
[408232468,1773276645347,-1349.16258782,0.00019699,2]
[408232469,1773276645359,-167.307148,0.000198,2]
[408232470,1773276645368,-151.0,0.000198,2]
[408232471,1773276645377,-167.307148,0.00019973,2]
[408232472,1773276645386,-151.0,0.00019973,2]
[408232473,1773276645395,-89208.99874955,0.0002,2]
[408232474,1773276645406,-963747.01170409,0.0002,2]
[408232475,1773276645417,-1082.08232065,0.0002,2]
[408232476,1773276645428,-478.51655685,0.0002,2]
[408232481,1773276645583,-11349.06248984,0.0002,2]
[408232482,1773276645594,-18282.27934765,0.0002,2]
[408232483,1773276645606,-24889.77826162,0.0002,2]
[408232484,1773276645617,-39777.55164639,0.0002,2]
[408232486,1773276646232,-6104.51503018,0.0002,2]
[408232487,1773276646283,-85451.67923383,0.0002,2]
[408232527,1773276739480,500.0,9.4e-05,2]
[408232528,1773276743966,500.0,9.4e-05,2]
[408232529,1773276744452,500.0,9.4e-05,2]
[408232530,1773276744787,500.0,9.4e-05,2]
[408232531,1773276744819,500.0,9.4e-05,2]
[408232532,1773276744857,500.0,9.4e-05,2]
[408232533,1773276745098,500.0,9.4e-05,2]
[408232534,1773276745191,985.1913269,9.4e-05,2]
[408232535,1773276745310,514.8186731,9.4e-05,2]
[408232536,1773276745338,152.63293441,9.4e-05,2]
[408232537,1773276745364,500.0,9.4e-05,2]
[408232538,1773276745390,500.0,9.4e-05,2]
[408232539,1773276745580,500.0,9.4e-05,2]
[408232540,1773276745827,500.0,9.4e-05,2]
[408232541,1773276745856,500.0,9.4e-05,2]
[408232542,1773276745882,500.0,9.4e-05,2]
[408232543,1773276746091,500.0,9.4e-05,2]
[408232544,1773276746348,500.0,9.4e-05,2]
[408232545,1773276746563,500.0,9.4e-05,2]
[408232546,1773276746592,347.37706559,9.4e-05,2]
[408232547,1773276746616,152.62293441,9.4e-05,2]
[408232548,1773276746716,500.0,9.4e-05,2]
[408232549,1773276746845,500.0,9.4e-05,2]
[408232550,1773276747057,500.0,9.4e-05,2]
[408232551,1773276747082,500.0,9.4e-05,2]
[408232552,1773276747312,500.0,9.4e-05,2]
[408232553,1773276747524,500.0,9.4e-05,2]
[408232554,1773276747805,500.0,9.4e-05,2]
[408232555,1773276748210,500.0,9.4e-05,2]
[408232556,1773276749578,500.0,9.4e-05,2]
[408232557,1773276750060,500.0,9.4e-05,2]
[408232558,1773276751883,500.0,9.4e-05,2]
[408232559,1773276752339,0.01,9.4e-05,2]
[408232560,1773276752360,499.99,9.4e-05,2]
[408232561,1773276752816,500.0,9.4e-05,2]
[408232562,1773276784864,158.0,0.000144,2]
[408232567,1773277038127,500.0,9.4e-05,2]
[408232568,1773277038627,500.0,9.4e-05,2]
[408232569,1773277038912,500.0,9.4e-05,2]
[408232570,1773277038998,500.0,9.4e-05,2]
[408232571,1773277039512,500.0,9.4e-05,2]
[408232572,1773277045928,500.0,9.4e-05,2]
[408232573,1773277046447,500.0,9.4e-05,2]
[408232574,1773277046970,500.0,9.4e-05,2]
[408232575,1773277048511,500.0,9.4e-05,2]
[408232576,1773277051402,500.0,9.4e-05,2]
[408232577,1773277051562,500.0,9.4e-05,2]
[408232578,1773277053078,500.0,9.4e-05,2]
[408232579,1773277053276,500.0,9.4e-05,2]
[408232580,1773277053578,500.0,9.4e-05,2]
[408232581,1773277144657,-1200.0,0.00014999,2]
[408232582,1773277144681,-150.0,0.00014999,2]
[408232583,1773277144704,-300.0,0.00014999,2]
[408232584,1773277144729,-300.0,0.00014999,2]
[408232585,1773277144753,-643.08,0.00015,2]
[408232586,1773277144776,-500.0,0.00015,30]
[408232587,1773277144800,-500.0,0.00015,30]
[408232588,1773277144823,-501.58834449,0.00015,30]
[408232589,1773277144849,-500.0,0.00015,30]
[408232590,1773277144872,-501.41567548,0.00015,30]
[408232591,1773277144895,-503.15394825,0.00015,30]
[408232592,1773277144918,-500.0,0.00015,30]
[408232593,1773277144941,-500.0,0.00015,30]
[408232594,1773277144965,-500.0,0.00015,30]
[408232595,1773277144989,-500.0,0.00015,30]
[408232596,1773277145018,-658.61344179,0.00015,30]
[408232597,1773277145046,-500.0,0.00015,30]
[408232598,1773277145073,-500.0,0.00015,30]
[408232599,1773277145098,-500.0,0.00015,30]
[408232600,1773277145124,-1000.0,0.00015,30]
[408232601,1773277145150,-500.0,0.00015,30]
[408232602,1773277145174,-507.70143691,0.00015,30]
[408232603,1773277145199,-500.0,0.00015,30]
[408232604,1773277145225,-500.0,0.00015,30]
[408232605,1773277145252,-500.0,0.00015,30]
[408232606,1773277145278,-505.32807387,0.00015,30]
[408232607,1773277145304,-500.0,0.00015,30]
[408232608,1773277145330,-500.0,0.00015,30]
[408232609,1773277145356,-500.0,0.00015,30]
[408232610,1773277145391,-500.0,0.00015,30]
[408232611,1773277145422,-500.0,0.00015,30]
[408232612,1773277145448,-500.0,0.00015,30]
[408232613,1773277145474,-500.0,0.00015,30]
[408232614,1773277145500,-500.0,0.00015073,2]
[408232615,1773277145530,-500.0,0.00015073,2]
[408232616,1773277145560,-500.0,0.00015073,2]
[408232617,1773277145588,-500.0,0.000151,2]
[408232618,1773277145614,-216.34695217,0.000151,2]
[408232619,1773277145639,-643.08,0.00015274,2]
[408232620,1773277145666,-643.08,0.00015548,2]
[408232621,1773277145692,-1006.03417329,0.00015621,2]
[408232622,1773277145720,-1000.0,0.00015621,2]
[408232623,1773277145746,-643.08,0.00015822,2]
[408232624,1773277145773,-643.08,0.00016096,2]
[408232625,1773277145800,-255.0,0.00016124,2]
[408232626,1773277145830,-289.41795375,0.00016168,2]
[408232631,1773277351448,500.0,9.4e-05,2]
[408232632,1773277351937,0.01,9.4e-05,2]
[408232633,1773277351958,499.99,9.4e-05,2]
[408232634,1773277352547,500.0,9.4e-05,2]
[408232635,1773277353026,500.0,9.4e-05,2]
[408232636,1773277353565,500.0,9.4e-05,2]
[408232637,1773277354043,994.10856489,9.4e-05,2]
[408232650,1773277831425,-287.06431718,0.00014517,2]
[408232651,1773277831437,-914.06568282,0.00014517,2]
[408232652,1773277831446,-300.0,0.00014999,2]
[408232653,1773277831455,-162.83453983,0.00014999,2]
[408232654,1773277831534,-784.54454562,0.00014999,2]
[408232655,1773277831544,-252.62091455,0.00014999,2]
[408232656,1773277831553,-500.0,0.00015,30]
[408232657,1773277831566,-500.0,0.00015,30]
[408232658,1773277831575,-500.0,0.00015,30]
[408232659,1773277831584,-500.0,0.00015,30]
[408232660,1773277831593,-500.0,0.00015,30]
[408232661,1773277831602,-500.0,0.00015,30]
[408232662,1773277831612,-502.48786936,0.000151,2]
[408232663,1773277831621,-318.091324,0.00015674,7]
[408232664,1773277831630,-558.83561415,0.00015969,2]
[408232665,1773277831639,-600.0,0.00015969,2]
[408232666,1773277831647,-250.0,0.00015969,2]
[408232667,1773277831656,-300.0,0.00015969,2]
[408232668,1773277831666,-174.60873634,0.00016168,2]
[408232669,1773277831675,-550.0,0.00016199,2]
[408232670,1773277831687,-5000.00074734,0.000162,5]
[408232671,1773277831697,-500.0,0.0001635,2]
[408232673,1773277831710,-500.0,0.0001635,2]
[408232674,1773277831718,-500.0,0.0001635,2]
[408232675,1773277831727,-500.0,0.0001635,2]
[408232676,1773277831736,-500.0,0.0001635,2]
[408232677,1773277831746,-325.0,0.00016416,2]
[408232678,1773277831756,-1680.0,0.00016499,2]
[408232681,1773277831766,-1109.4189945,0.00016603,2]
[408232684,1773277831776,-1538.71068769,0.00016822,2]
[408232687,1773277831785,-215.19575134,0.00016898,2]
[408232690,1773277831794,-505.0,0.00017,2]
[408232693,1773277831806,-166.66,0.00017099,2]
[408232694,1773277831815,-13376.87,0.00017188,2]